bitfinex/quotes_ETHUSD_20250909
["timestamp","ask_amount","ask_price","bid_price","bid_amount"]
[1757376001792,1.38778054,4305.9,4305.8,0.77220001]
[1757376002125,1.364435,4305.9,4305.8,0.77220001]
[1757376002672,1.364435,4305.9,4305.8,1.25890001]
[1757376003045,0.43329433,4305.9,4305.8,1.25890001]
[1757376003252,0.4759,4306.0,4305.8,1.25890001]
[1757376003253,0.21664716,4306.0,4305.8,1.25890001]
[1757376003434,0.21664716,4306.0,4305.9,0.9497]
[1757376003834,0.21664716,4306.0,4305.9,1.2498]
[1757376004436,0.21762477,4306.1,4305.9,1.2498]
[1757376004637,0.21762477,4306.1,4306.0,0.9497]
[1757376005138,0.001,4306.1,4306.0,1.2498]
[1757376005386,3.874,4306.1,4306.0,1.2498]
[1757376005681,6.09024954,4306.1,4306.0,1.2498]
[1757376006279,8.19591175,4306.1,4306.0,1.2498]
[1757376007185,7.97728698,4306.1,4306.0,1.2498]
[1757376009692,5.655,4306.1,4306.0,1.2498]
[1757376009898,7.97728698,4306.1,4306.0,1.2498]
[1757376010240,2.32234091,4306.0,4305.8,0.00200001]
[1757376010439,3.13774039,4305.9,4305.8,0.00200001]
[1757376010674,3.23854039,4305.9,4305.8,0.00200001]
[1757376012305,4.15810055,4305.9,4305.8,0.00200001]
[1757376012623,4.91377203,4305.9,4305.8,0.76510001]
[1757376012843,8.78377203,4305.9,4305.8,0.76510001]
[1757376013018,8.78377203,4305.9,4305.8,1.25180001]
[1757376014178,4.48141187,4305.9,4305.8,1.25180001]
[1757376014416,8.35141187,4305.9,4305.8,1.25180001]
[1757376014615,0.463,4306.0,4305.8,1.25180001]
[1757376014831,3.87,4305.9,4305.8,0.30210001]
[1757376014983,6.19239485,4305.9,4305.8,0.30210001]
[1757376015384,6.19239485,4305.9,4305.8,1.25180001]
[1757376017325,1.784,4306.1,4305.8,1.37718001]
[1757376017535,3.87,4306.0,4305.9,0.9497]
[1757376017897,3.87,4306.0,4305.9,1.2498]
[1757376018693,3.87,4306.0,4305.9,3.57219368]
[1757376018892,0.116,4306.0,4305.9,3.57219368]
[1757376019233,2.284,4306.0,4305.9,4.24427696]
[1757376020029,0.001,4306.1,4306.0,2.32234091]
[1757376020231,0.001,4306.1,4306.0,3.59536431]
[1757376020405,0.001,4306.1,4306.0,3.57214091]
[1757376020650,0.001,4306.1,4306.0,1.2498]
[1757376020831,0.001,4306.1,4306.0,4.00950621]
[1757376022534,0.001,4306.1,4306.0,1.6871653]
[1757376022714,0.001,4306.1,4306.0,1.2498]
[1757376023661,0.001,4306.1,4306.0,3.57214091]
[1757376023952,0.001,4306.1,4306.0,1.2498]
[1757376024536,0.001,4306.1,4306.0,3.57214091]
[1757376024745,0.001,4306.1,4306.0,1.8396633]
[1757376025250,0.001,4306.1,4306.0,4.8586895]
[1757376025552,0.001,4306.1,4306.0,2.53634859]
[1757376026544,0.001,4306.1,4306.0,1.94648529]
[1757376027028,0.001,4306.1,4306.0,1.45978529]
[1757376027229,0.001,4306.1,4305.8,0.00200001]
[1757376027548,0.001,4306.1,4306.0,0.3001]
[1757376027720,0.001,4306.1,4306.0,0.7631]
[1757376028247,2.42228698,4306.1,4305.8,0.00200001]
[1757376028402,0.001,4306.1,4305.9,0.463]
[1757376028743,0.001,4306.1,4306.0,0.7631]
[1757376029831,3.87,4306.1,4306.0,0.7631]
[1757376030943,2.32239485,4305.9,4305.8,0.00200001]
[1757376031547,0.1008,4305.9,4305.8,0.00200001]
[1757376031747,0.5981,4306.0,4305.8,0.00200001]
[1757376032046,2.32239485,4305.9,4305.8,0.00200001]
[1757376032259,0.1008,4305.9,4305.8,0.00200001]
[1757376032418,0.116,4306.0,4305.8,0.00200001]
[1757376032742,2.43838566,4306.0,4305.8,0.00200001]
[1757376032966,2.92864039,4305.9,4305.8,0.00200001]
[1757376033100,3.99464039,4305.9,4305.8,0.00200001]
[1757376034504,3.69729485,4305.9,4305.8,0.00200001]
[1757376035513,3.72064039,4305.9,4305.8,0.00200001]
[1757376036145,3.69729485,4305.9,4305.8,0.00200001]
[1757376036324,5.0038756,4305.9,4305.8,0.00200001]
[1757376036521,4.5217756,4305.9,4305.8,0.00200001]
[1757376036720,8.3907756,4305.9,4305.8,0.00200001]
[1757376037650,8.8728756,4305.9,4305.8,0.00200001]
[1757376038563,7.4979756,4305.9,4305.8,0.30910001]
[1757376038770,6.19139485,4305.9,4305.8,0.77130001]
[1757376039102,6.29039485,4305.9,4305.8,0.00200001]
[1757376039351,6.77249485,4305.9,4305.8,0.00200001]
[1757376039769,7.56449485,4305.9,4305.8,0.00200001]
[1757376040075,7.84029485,4305.9,4305.8,0.00200001]
[1757376040268,9.03485551,4305.9,4305.8,0.00200001]
[1757376041068,8.75905551,4305.9,4305.8,0.00200001]
[1757376044442,9.03485551,4305.9,4305.8,0.00200001]
[1757376047047,3.11444879,4305.8,4305.7,1e-08]
[1757376047252,6.82146915,4305.8,4305.7,1e-08]
[1757376047546,9.01805279,4305.8,4305.7,1e-08]
[1757376047748,5.00393243,4305.8,4305.7,1e-08]
[1757376047967,8.87393243,4305.8,4305.7,1e-08]
[1757376048188,8.97643243,4305.8,4305.7,1e-08]
[1757376049177,9.14955404,4305.8,4305.7,1e-08]
[1757376049836,9.04705404,4305.8,4305.7,1e-08]
[1757376050773,9.63165404,4305.8,4305.7,1e-08]
[1757376052080,9.14955404,4305.8,4305.7,1e-08]
[1757376053080,9.04705404,4305.8,4305.7,1e-08]
[1757376058053,5.17705404,4305.8,4305.7,0.30710001]
[1757376058241,9.26318666,4305.8,4305.7,0.76930001]
[1757376059300,9.26318666,4305.8,4305.7,1e-08]
[1757376060457,9.26318666,4305.8,4305.7,0.30710001]
[1757376060788,9.26318666,4305.8,4305.7,0.76930001]
[1757376061907,2.32239485,4305.9,4305.7,0.76930001]
[1757376061908,2.32244732,4305.9,4305.7,1.22310001]
[1757376062137,3.87,4305.8,4305.7,0.30710001]
[1757376062654,4.10534738,4306.0,4305.7,1.22310001]
[1757376062655,1.783,4306.0,4305.7,1.22310001]
[1757376062876,1.783,4306.0,4305.8,0.93922448]
[1757376062877,3.87,4305.9,4305.8,0.93922448]
[1757376063191,3.87,4305.9,4305.8,1.32643245]
[1757376064109,6.19239485,4305.9,4305.8,1.2016]
[1757376064609,3.87,4305.9,4305.8,1.2016]
[1757376065324,6.19239485,4305.9,4305.8,1.2016]
[1757376066407,3.23044879,4305.8,4305.7,1e-08]
[1757376066577,5.14559825,4305.8,4305.7,1e-08]
[1757376066780,5.49895271,4305.8,4305.7,1e-08]
[1757376066993,5.41865271,4305.8,4305.7,1e-08]
[1757376067308,5.49895271,4305.8,4305.7,1e-08]
[1757376067533,5.71521776,4305.8,4305.7,1e-08]
[1757376068036,4.85761776,4305.8,4305.7,1e-08]
[1757376068158,8.51135271,4305.8,4305.7,1e-08]
[1757376069263,8.61035271,4305.8,4305.7,1e-08]
[1757376069462,9.09125271,4305.8,4305.7,1e-08]
[1757376070173,9.30753561,4305.8,4305.7,1e-08]
[1757376070373,9.09125271,4305.8,4305.7,1e-08]
[1757376070924,9.30751368,4305.8,4305.7,1e-08]
[1757376071225,9.58331368,4305.8,4305.7,1e-08]
[1757376071570,9.30751368,4305.8,4305.7,1e-08]
[1757376073108,9.47769306,4305.8,4305.7,1e-08]
[1757376074711,8.89779306,4305.8,4305.7,1e-08]
[1757376075216,5.02779306,4305.8,4305.7,1e-08]
[1757376075421,4.10537053,4306.0,4305.7,1e-08]
[1757376075422,1.783,4306.0,4305.7,1.20160001]
[1757376075570,3.875,4305.9,4305.8,0.93922448]
[1757376075766,3.875,4305.9,4305.8,1.22482448]
[1757376076099,0.001,4306.5,4306.0,5.32234091]
[1757376076416,0.116,4306.0,4305.9,6.23838712]
[1757376076586,3.927,4306.0,4305.9,6.52398712]
[1757376077848,0.116,4306.4,4306.3,2.32213441]
[1757376078077,3.992,4306.4,4306.3,6.37217718]
[1757376078208,3.992,4306.4,4306.3,7.28817718]
[1757376079072,0.001,4306.5,4306.4,5.3221252]
[1757376079214,0.001,4306.5,4306.4,6.2381252]
[1757376079413,0.001,4306.5,4306.4,6.5237252]
[1757376079641,0.001,4306.5,4306.4,7.72858306]
[1757376080009,0.001,4306.5,4306.4,7.84458306]
[1757376081344,0.001,4306.5,4306.4,5.52245786]
[1757376081544,0.001,4306.5,4306.4,2.40645786]
[1757376081956,0.001,4306.5,4306.4,1.2016]
[1757376082552,0.001,4306.5,4306.4,4.2016]
[1757376083351,0.001,4306.5,4306.4,6.5237252]
[1757376084526,0.001,4306.5,4306.4,4.2016]
[1757376084928,0.001,4306.5,4306.4,6.5237252]
[1757376085122,0.001,4306.5,4306.4,5.08619831]
[1757376085335,0.001,4306.5,4306.4,4.2016]
[1757376085556,0.001,4306.5,4306.4,6.5237252]
[1757376085778,0.001,4306.5,4306.4,4.2016]
[1757376086328,0.001,4306.5,4306.4,3.2856]
[1757376086528,0.001,4306.5,4306.4,3.0]
[1757376087147,0.001,4306.5,4306.4,3.2856]
[1757376087329,0.001,4306.5,4306.4,3.7158]
[1757376087923,0.001,4306.5,4306.4,7.12753068]
[1757376088282,0.001,4306.5,4306.4,4.80540548]
[1757376088834,0.001,4306.5,4306.4,7.12753068]
[1757376089170,0.001,4306.5,4306.4,4.80540548]
[1757376090367,0.001,4306.5,4306.4,4.31960548]
[1757376091580,0.001,4306.5,4306.4,4.80310548]
[1757376092343,0.001,4306.5,4306.4,7.12523068]
[1757376093450,0.001,4306.5,4306.4,4.80310548]
[1757376094457,0.001,4306.5,4306.4,4.31960548]
[1757376095190,0.001,4306.5,4306.4,3.2856]
[1757376095992,2.32241102,4305.9,4305.7,1e-08]
[1757376096295,6.19544879,4305.8,4305.7,1e-08]
[1757376096464,7.97344879,4305.8,4305.7,1e-08]
[1757376106792,7.77514879,4305.8,4305.7,1e-08]
[1757376107101,8.80218673,4305.8,4305.7,1e-08]
[1757376107976,9.00048673,4305.8,4305.7,1e-08]
[1757376108916,12.00048673,4305.8,4305.7,1e-08]
[1757376111524,6.11466456,4305.4,4305.3,1e-08]
[1757376111673,11.77566456,4305.4,4305.3,1e-08]
[1757376111868,13.18548983,4305.4,4305.3,1e-08]
[1757376112211,14.17138983,4305.4,4305.3,1e-08]
[1757376113574,13.97218983,4305.4,4305.3,1e-08]
[1757376115545,13.97218983,4305.4,4305.1,1e-08]
[1757376115546,3.11477246,4305.2,4305.1,1e-08]
[1757376115747,7.015118,4305.2,4305.1,1e-08]
[1757376115948,8.63510864,4305.2,4305.1,1e-08]
[1757376116149,9.42080864,4305.2,4305.1,1e-08]
[1757376117203,8.92840864,4305.2,4305.1,1e-08]
[1757376119644,9.42080864,4305.2,4305.1,1e-08]
[1757376120538,8.92840864,4305.2,4305.1,1e-08]
[1757376121147,9.62100864,4305.2,4305.1,1e-08]
[1757376121726,9.62100864,4305.2,4304.8,1e-08]
[1757376121727,0.792,4305.1,4304.8,1e-08]
[1757376122038,6.11493433,4304.9,4304.8,1e-08]
[1757376122254,7.00693433,4304.9,4304.8,1e-08]
[1757376122561,7.00693433,4304.9,4304.8,0.29470001]
[1757376122964,7.00693433,4304.9,4304.8,0.74310001]
[1757376123125,8.4167596,4304.9,4304.8,0.74310001]
[1757376123551,8.4167596,4304.9,4304.8,1e-08]
[1757376125360,8.4167596,4304.9,4304.8,0.74310001]
[1757376125559,8.4157596,4304.9,4304.8,0.74310001]
[1757376128192,8.4147596,4304.9,4304.8,1.21290001]
[1757376128343,7.00493433,4304.9,4304.8,1.21290001]
[1757376129367,4.10571361,4305.4,4304.8,1.21290001]
[1757376129569,1.783,4305.4,4304.8,0.29470001]
[1757376129766,3.89,4305.3,4304.9,0.9182]
[1757376129973,3.89,4305.3,4305.2,0.2947]
[1757376130141,3.89,4305.3,4305.2,1.2129]
[1757376130342,6.2127185,4305.3,4305.2,1.2129]
[1757376131066,1.783,4305.4,4305.2,1.2129]
[1757376131285,3.89,4305.3,4305.2,0.2947]
[1757376131430,1.783,4305.4,4305.2,0.2947]
[1757376131628,3.89,4305.3,4305.2,0.2947]
[1757376132346,3.891,4305.3,4305.2,1.2129]
[1757376136943,6.2137185,4305.3,4305.2,0.2947]
[1757376137162,3.891,4305.3,4305.2,0.7431]
[1757376137361,3.891,4305.3,4305.2,1.2129]
[1757376137685,6.2137185,4305.3,4305.2,1.2129]
[1757376138061,3.891,4305.3,4305.2,1.2129]
[1757376139246,3.891,4305.3,4305.2,0.7431]
[1757376139463,6.2137185,4305.3,4305.2,0.7431]
[1757376140600,3.891,4305.3,4305.2,0.7431]
[1757376140746,3.891,4305.3,4305.2,1.2129]
[1757376141609,6.2137185,4305.3,4305.2,0.7431]
[1757376142493,2.43877664,4305.2,4304.9,0.4698]
[1757376142718,0.116,4304.9,4304.8,1e-08]
[1757376142847,4.0,4304.9,4304.8,0.44840001]
[1757376143051,6.32293433,4304.9,4304.8,0.74310001]
[1757376143508,4.0,4304.9,4304.8,0.74310001]
[1757376143988,6.32293433,4304.9,4304.8,0.74310001]
[1757376144420,6.32293433,4304.9,4304.8,1e-08]
[1757376144549,4.0,4304.9,4304.8,0.74310001]
[1757376144747,4.0,4304.9,4304.8,1.21290001]
[1757376148567,4.0,4304.9,4304.8,0.74310001]
[1757376148772,6.32293433,4304.9,4304.8,0.74310001]
[1757376148996,0.001,4305.3,4304.8,1.21290001]
[1757376149305,3.882,4305.2,4304.9,0.9182]
[1757376149504,3.882,4305.2,4305.1,0.2947]
[1757376149861,3.882,4305.2,4305.1,1.2129]
[1757376152196,3.882,4305.2,4305.1,0.7431]
[1757376153216,4.1894,4305.2,4304.8,1e-08]
[1757376153545,2.32282641,4305.1,4304.8,1e-08]
[1757376153715,3.88,4305.0,4304.8,0.43840001]
[1757376153919,0.001,4305.3,4305.0,0.3018]
[1757376154121,0.116,4305.4,4305.1,2.46907373]
[1757376154304,0.116,4305.4,4305.3,2.6245185]
[1757376154506,0.116,4305.4,4305.3,5.6245185]
[1757376154704,0.116,4305.4,4305.3,6.5531185]
[1757376158524,0.142,4305.8,4305.7,2.32250272]
[1757376158717,0.142,4305.8,4305.7,2.34572774]
[1757376158936,0.142,4305.8,4305.7,6.55290272]
[1757376160841,0.026,4305.8,4305.7,4.2304]
[1757376161157,0.026,4305.8,4305.7,6.55290272]
[1757376161855,0.026,4305.8,4305.7,3.7402]
[1757376162029,0.026,4305.8,4305.7,3.0]
[1757376162541,0.026,4305.8,4305.7,3.3018]
[1757376162730,0.026,4305.8,4305.7,3.7402]
[1757376163056,0.026,4305.8,4305.7,6.55290272]
[1757376163255,0.026,4305.8,4305.7,6.92692272]
[1757376163854,0.026,4305.8,4305.7,4.2304]
[1757376164026,0.3334,4305.8,4305.7,3.0]
[1757376164226,0.3334,4305.8,4305.2,0.4384]
[1757376164555,0.026,4305.8,4305.4,3.0]
[1757376164918,0.026,4305.8,4305.5,0.4384]
[1757376166857,0.026,4305.8,4305.7,5.62430272]
[1757376167244,0.026,4305.8,4305.7,6.55290272]
[1757376168933,0.026,4305.8,4305.7,10.43690272]
[1757376170844,0.026,4305.8,4305.7,10.55290272]
[1757376173798,0.026,4305.8,4305.7,10.06270272]
[1757376173952,0.026,4305.8,4305.7,11.24283475]
[1757376175796,0.026,4305.8,4305.7,11.73303475]
[1757376175972,0.026,4305.8,4305.7,11.24283475]
[1757376176494,0.026,4305.8,4305.7,11.73303475]
[1757376178402,0.026,4305.8,4305.7,7.84903475]
[1757376179803,0.026,4305.8,4305.7,7.96503475]
[1757376180307,1e-08,4305.8,4305.7,7.96503475]
[1757376180509,1e-08,4305.8,4305.7,8.05791189]
[1757376180679,1e-08,4305.8,4305.7,9.72117516]
[1757376181296,1e-08,4305.8,4305.7,10.51317516]
[1757376182182,0.001,4306.5,4306.4,2.3221252]
[1757376182383,0.001,4306.5,4306.4,9.66855792]
[1757376182577,0.001,4306.5,4306.4,10.99265792]
[1757376184710,0.001,4306.5,4306.4,40.99265792]
[1757376184909,0.001,4306.5,4306.4,41.08551953]
[1757376186732,0.001,4306.5,4306.4,11.08551953]
[1757376187134,0.001,4306.5,4306.4,41.08551953]
[1757376188728,0.001,4306.5,4306.4,11.08551953]
[1757376189241,0.001,4306.5,4306.4,41.08551953]
[1757376192370,0.001,4306.5,4306.4,10.60421953]
[1757376197127,0.001,4306.5,4306.4,11.08151953]
[1757376200753,0.3159,4306.5,4306.4,5.99541953]
[1757376200957,0.3159,4306.5,4306.4,9.86941953]
[1757376201389,0.001,4306.5,4306.4,9.86941953]
[1757376201737,0.001,4306.5,4306.4,10.16531953]
[1757376202134,0.001,4306.5,4306.4,10.60021953]
[1757376202506,0.5659,4306.5,4306.4,2.4381252]
[1757376202791,0.5659,4306.5,4306.4,9.3131252]
[1757376202935,0.5659,4306.5,4306.4,6.3131252]
[1757376203285,0.5659,4306.5,4306.4,9.3131252]
[1757376203445,0.001,4306.5,4306.4,9.3131252]
[1757376203978,0.1029,4306.5,4306.4,9.3131252]
[1757376204480,0.001,4306.5,4306.4,9.3131252]
[1757376205677,0.001,4306.5,4306.4,11.43863735]
[1757376205981,0.001,4306.5,4306.4,11.53150155]
[1757376206136,0.001,4306.5,4306.4,12.00880155]
[1757376206983,0.001,4306.5,4306.4,42.00880155]
[1757376207151,0.001,4306.5,4306.4,43.67206482]
[1757376207741,0.001,4306.5,4306.4,42.00880155]
[1757376210243,0.4165,4307.9,4306.5,3.0]
[1757376210445,0.4165,4307.9,4307.3,0.116]
[1757376210680,0.4165,4307.9,4307.3,9.31464]
[1757376210681,0.4659,4307.5,4307.3,9.31464]
[1757376210897,0.9595,4307.4,4307.3,6.993]
[1757376211060,0.9595,4307.4,4307.3,9.19864]
[1757376211759,0.9595,4307.4,4307.3,3.0]
[1757376212283,1.0755,4307.4,4307.3,3.0]
[1757376212698,0.1,4307.4,4307.3,5.3448564]
[1757376212867,0.1,4307.4,4307.3,6.47599973]
[1757376213055,0.1,4307.4,4307.3,10.35399973]
[1757376213248,0.565,4307.4,4307.3,10.35399973]
[1757376213452,0.565,4307.4,4307.3,9.19964]
[1757376214566,0.1,4307.4,4307.3,9.19964]
[1757376214898,0.565,4307.4,4307.3,9.19964]
[1757376215404,0.1,4307.4,4307.3,9.19964]
[1757376215749,2.4215861,4307.4,4306.9,0.141]
[1757376215956,2.4215861,4307.4,4306.1,0.002]
[1757376215957,0.792,4307.2,4306.1,0.002]
[1757376216262,2.3219143,4306.8,4306.1,0.002]
[1757376216464,0.294,4306.2,4306.1,0.002]
[1757376216666,2.61623305,4306.2,4306.1,0.002]
[1757376216903,3.54335635,4306.2,4306.1,0.002]
[1757376217259,4.33535635,4306.2,4306.1,0.002]
[1757376220822,2.0131233,4306.2,4306.1,0.002]
[1757376221103,4.33535635,4306.2,4306.1,0.002]
[1757376221353,0.759,4306.2,4306.1,0.002]
[1757376221461,0.294,4306.2,4306.1,0.002]
[1757376221662,0.759,4306.2,4306.1,0.002]
[1757376222802,0.294,4306.2,4306.1,0.002]
[1757376224067,3.903,4306.4,4306.1,0.002]
[1757376224271,3.903,4306.4,4306.1,2.32428698]
[1757376224475,1.782,4306.5,4306.4,2.3221252]
[1757376224661,0.465,4306.9,4306.5,3.0]
[1757376224896,5.689,4307.2,4306.7,2.3219603]
[1757376225263,0.465,4307.1,4306.7,2.3219603]
[1757376225674,1.782,4307.2,4306.9,2.32183831]
[1757376226112,1.782,4307.2,4307.0,0.02321801]
[1757376226660,1.782,4307.2,4307.0,2.34499874]
[1757376226866,0.116,4307.1,4307.0,2.32180171]
[1757376227503,0.116,4307.1,4307.0,2.63610171]
[1757376227710,0.116,4307.1,4307.0,3.09520171]
[1757376228622,0.116,4307.1,4307.0,5.63610171]
[1757376228787,0.001,4307.4,4307.2,5.3216939]
[1757376228997,0.001,4307.4,4307.3,5.32164]
[1757376229218,0.001,4307.4,4307.3,3.09504]
[1757376229727,0.1,4307.4,4307.1,3.0]
[1757376229872,0.465,4307.3,4307.0,3.0]
[1757376230221,0.294,4307.1,4307.0,3.0]
[1757376230369,0.116,4307.0,4306.9,2.32185276]
[1757376230569,0.4091,4307.0,4306.9,2.32185276]
[1757376231517,0.116,4307.0,4306.9,2.32185276]
[1757376232084,0.116,4307.0,4306.9,5.63615276]
[1757376232287,0.68,4307.0,4306.9,3.0]
[1757376234147,0.68,4307.0,4306.3,0.116]
[1757376234307,0.564,4307.0,4306.1,0.002]
[1757376234637,0.564,4307.0,4306.3,3.0]
[1757376234822,0.099,4307.0,4306.4,0.4591]
[1757376234996,1.782,4307.1,4306.5,3.02322071]
[1757376234997,5.692,4307.1,4306.5,3.02322071]
[1757376235197,5.692,4307.1,4306.6,2.32196806]
[1757376235524,5.692,4307.1,4306.5,3.0]
[1757376235697,5.692,4307.1,4306.5,2.32205121]
[1757376236112,5.692,4307.1,4306.6,2.32200759]
[1757376236341,0.465,4307.0,4306.6,2.32200759]
[1757376236926,5.692,4307.1,4306.6,0.4591]
[1757376237126,5.692,4307.1,4306.7,0.4591]
[1757376237635,5.692,4307.1,4306.9,3.0]
[1757376238638,5.692,4307.1,4306.8,3.4591]
[1757376238950,5.692,4307.1,4306.8,0.4591]
[1757376239435,5.692,4307.1,4306.8,2.78100214]
[1757376239643,5.692,4307.1,4306.9,2.32185562]
[1757376239836,5.692,4307.1,4306.6,0.002]
[1757376239837,0.001,4307.3,4307.0,3.57870171]
[1757376240038,0.001,4307.3,4307.1,0.02321747]
[1757376240250,0.001,4307.3,4307.1,0.96581747]
[1757376240444,0.001,4307.3,4307.2,6.0950939]
[1757376240769,0.026,4307.8,4307.7,2.32142442]
[1757376240920,1.782,4308.6,4307.8,5.32137053]
[1757376241115,1.782,4308.6,4307.8,6.24087053]
[1757376241335,1.782,4308.6,4307.8,6.53027053]
[1757376242631,1.782,4308.6,4307.8,5.61077053]
[1757376242834,1.782,4308.6,4307.8,7.22789002]
[1757376243225,0.12,4307.9,4307.2,7.12302544]
[1757376243438,0.4703,4307.8,4307.3,3.0]
[1757376243637,0.12,4307.9,4306.9,3.911]
[1757376243638,0.3095,4307.4,4306.9,3.911]
[1757376243842,0.3095,4307.4,4306.8,0.05]
[1757376243843,0.4703,4307.3,4306.8,0.05]
[1757376244046,0.4703,4307.3,4307.0,2.32175519]
[1757376244232,0.116,4307.2,4307.1,3.0]
[1757376244441,0.4255,4307.2,4306.9,5.32185562]
[1757376244664,0.8958,4307.2,4306.9,2.32185562]
[1757376244836,0.8958,4307.2,4306.8,2.3719076]
[1757376245219,0.8958,4307.2,4306.9,2.32185367]
[1757376245649,0.8958,4307.2,4306.8,3.025]
[1757376246172,0.4255,4307.2,4306.9,2.32185562]
[1757376246673,0.4255,4307.2,4307.0,2.32179619]
[1757376246880,0.4255,4307.2,4306.8,3.025]
[1757376247277,0.4255,4307.2,4306.9,2.32184856]
[1757376247675,0.4255,4307.2,4307.0,2.32177757]
[1757376248169,0.4255,4307.2,4306.9,2.32184405]
[1757376248764,0.4703,4307.1,4306.8,0.025]
[1757376249330,0.4947,4307.2,4306.8,0.025]
[1757376249331,0.3083,4306.9,4306.8,0.025]
[1757376250000,0.7786,4306.9,4306.8,0.025]
[1757376255593,0.3083,4306.9,4306.8,0.025]
[1757376255781,0.021,4307.9,4306.8,1.2339]
[1757376255979,3.906,4307.7,4306.9,0.94271855]
[1757376256274,1.898,4307.8,4307.7,5.32142442]
[1757376256597,1.898,4307.8,4307.7,3.53032442]
[1757376256788,1.898,4307.8,4307.7,6.53032442]
[1757376257810,1.898,4307.8,4307.7,4.2089]
[1757376258018,1.898,4307.8,4307.7,3.7224]
[1757376258316,0.116,4307.8,4307.7,6.04382442]
[1757376259380,0.116,4307.8,4307.7,3.7224]
[1757376259584,0.116,4307.8,4307.7,3.0]
[1757376259901,0.116,4307.8,4307.7,5.61082442]
[1757376260105,0.116,4307.8,4307.7,6.04382442]
[1757376260691,0.021,4307.9,4307.8,5.32137053]
[1757376260888,0.001,4308.4,4307.9,5.32131665]
[1757376261103,0.001,4308.4,4308.3,5.61050113]
[1757376261320,0.001,4308.4,4308.3,6.40599339]
[1757376261549,0.001,4308.4,4308.3,11.23149339]
[1757376262419,0.02,4308.9,4308.7,2.32088564]
[1757376262921,0.02,4308.9,4308.4,3.9195]
[1757376263236,0.02,4308.9,4308.6,2.75388856]
[1757376263556,0.02,4308.9,4308.4,3.433]
[1757376263838,0.02,4308.9,4308.4,3.0]
[1757376264040,0.4953,4308.8,4308.4,3.0]
[1757376264199,0.4953,4308.8,4308.2,2.321155]
[1757376264400,0.4953,4308.8,4308.2,1.24669021]
[1757376264605,0.025,4308.8,4308.7,0.2894]
[1757376264792,0.025,4308.8,4308.7,6.04328564]
[1757376266235,0.5943,4308.8,4308.7,3.0]
[1757376267613,0.124,4308.8,4308.7,3.0]
[1757376267833,0.025,4308.8,4308.7,3.0]
[1757376268589,0.1269,4308.8,4308.7,3.0]
[1757376269789,0.5972,4308.8,4308.7,3.0]
[1757376269988,1.47878,4308.8,4307.9,3.0]
[1757376270185,0.9878,4308.8,4307.9,3.0]
[1757376270418,0.5972,4308.8,4307.9,3.0]
[1757376270819,0.5972,4308.8,4307.9,5.32131464]
[1757376270820,0.116,4308.4,4307.9,5.32131464]
[1757376271018,0.116,4308.4,4307.8,3.901]
[1757376271019,0.116,4308.4,4308.3,0.2894]
[1757376271736,0.116,4308.4,4308.3,3.03940113]
[1757376271905,0.116,4308.4,4308.3,6.03940113]
[1757376273894,0.116,4308.4,4308.3,3.7183]
[1757376276037,0.116,4308.4,4308.3,3.2894]
[1757376276203,0.117,4308.4,4308.3,3.2894]
[1757376276401,0.216,4308.4,4308.3,3.0]
[1757376276739,1.0937,4308.4,4308.3,3.0]
[1757376276936,0.7001,4308.4,4308.3,3.0]
[1757376278650,4.5971,4308.4,4308.3,3.0]
[1757376279853,5.28890553,4308.4,4307.6,0.002]
[1757376279999,2.32110113,4308.3,4307.6,0.002]
[1757376280204,0.116,4307.9,4307.6,0.4309]
[1757376280400,0.116,4307.9,4307.8,0.2917]
[1757376280631,0.116,4307.9,4307.8,3.2917]
[1757376280834,0.116,4307.9,4307.6,0.002]
[1757376281409,0.099,4307.7,4307.6,0.002]
[1757376281751,3.69527996,4307.7,4307.6,0.002]
[1757376281953,4.57297996,4307.7,4307.6,0.002]
[1757376282244,3.11364,4307.3,4307.2,0.002]
[1757376282451,8.80264,4307.3,4307.2,0.002]
[1757376282746,9.77924,4307.3,4307.2,0.002]
[1757376282948,10.98932024,4307.3,4307.2,0.002]
[1757376286427,10.59872024,4307.3,4307.2,0.002]
[1757376287256,10.98932024,4307.3,4307.2,0.002]
[1757376287426,8.27708024,4307.3,4307.2,0.002]
[1757376287633,10.59872024,4307.3,4307.2,0.002]
[1757376288248,10.98932024,4307.3,4307.2,0.002]
[1757376295514,10.59872024,4307.3,4307.2,0.002]
[1757376295722,1.781,4307.3,4307.2,0.7226]
[1757376296084,5.69,4307.3,4307.2,1.1736]
[1757376296518,5.69,4307.3,4307.2,0.002]
[1757376296519,9.08894,4307.3,4307.2,0.002]
[1757376297143,8.80364,4307.3,4307.2,0.002]
[1757376297861,9.08814,4307.3,4307.2,0.002]
[1757376298166,9.94471033,4307.3,4307.2,0.002]
[1757376302168,7.62307033,4307.3,4307.2,0.3156]
[1757376302364,6.479,4307.3,4307.2,0.7784]
[1757376302517,2.573,4307.3,4307.2,1.2533]
[1757376302718,6.479,4307.3,4307.2,1.2533]
[1757376302996,1.781,4307.3,4307.2,1.2533]
[1757376303176,5.687,4307.3,4307.2,1.2533]
[1757376303519,5.687,4307.3,4307.2,1.37883]
[1757376303719,1.781,4307.3,4307.2,6.7005239]
[1757376303959,3.36,4307.6,4307.5,2.32153221]
[1757376304161,3.36,4307.6,4307.5,6.57283221]
[1757376304377,3.36,4307.6,4307.5,7.47503143]
[1757376304734,0.001,4307.6,4307.5,7.47503143]
[1757376309094,3.908,4307.6,4307.5,3.0]